Cogmind - Beta 12 @@@ ROGUE MODE // 2023.03.07 @ 14:36:38 Player: Elxavo Result: Destroyed by D-53 Grenadier with Mini Grenade Launcher Performance ------------- Evolutions (0) 0 Regions Visited (2) 400 Robots Destroyed (8) 40 Value Destroyed (168) 168 Prototype IDs (0) 0 Alien Tech Used (0) 0 Bonus (0) 0 TOTAL SCORE: 608 Bonus ------- None Cogmind --------- Core Integrity 0/250 Matter 300/300 Energy 125/125 System Corruption 9% Temperature Cool (0) Movement Hovering (600) Ox9 Location -10/Mines Parts ------- > --- POWER (1) -------- Light Ion Engine > --- PROPULSION (2) --- Hover Unit > --- UTILITY (2) ------ Medium Storage Unit High-capacity Storage Unit > --- WEAPON (2) ------- Small Laser Light Assault Rifle > --- INVENTORY (20) --- Ion Engine Flight Unit Flight Unit Small Laser Peak State ------------ > --- POWER ------------ Ion Engine > --- PROPULSION ------- Aluminum Leg Aluminum Leg > --- UTILITY ---------- Small Storage Unit Seismic Detector > --- WEAPON ----------- Assault Rifle Assault Rifle > --- INVENTORY -------- Ion Engine Light Treads Light Treads Small Laser [Rating: 7] Favorites ----------- Power Ion Engine Engine Ion Engine Propulsion Aluminum Leg Treads Light Treads Leg Aluminum Leg Hover Unit Hover Unit Utility Medium Storage Unit Device Seismic Detector Storage Medium Storage Unit Processor Signal Interpreter Weapon Assault Rifle Energy Gun Small Laser Energy Cannon Beam Cannon Ballistic Gun Assault Rifle Build | -11 -10 -10 ------- Run | Jun Mat Min Slots Evolved . | . . . Power . | . . . Propulsion . | . . . Utility . | . . . Weapon . | . . . Parts Attached 20 | 8 1 11 Power 3 | 1 . 2 Engine 3 | 1 . 2 Core . | . . . Reactor . | . . . Propulsion 7 | 3 . 4 Treads 3 | 1 . 2 Leg 2 | 2 . . Wheel . | . . . Hover 2 | . . 2 Flight . | . . . Utility 5 | 2 1 2 Device 1 | 1 . . Storage 3 | 1 1 1 Processor 1 | . . 1 Hackware . | . . . Protection . | . . . Artifact . | . . . Weapon 5 | 2 . 3 Energy Gun 1 | . . 1 Energy Cannon 1 | . . 1 Ballistic Gun 3 | 2 . 1 Ballistic Cannon . | . . . Launcher . | . . . Special Weapon . | . . . Impact Weapon . | . . . Slashing Weapon . | . . . Piercing Weapon . | . . . Special Melee Weapon . | . . . Unidentified Prototypes . | . . . Parts Lost 9 | . . 9 Power 1 | . . 1 Propulsion 4 | . . 4 Utility 1 | . . 1 Weapon 3 | . . 3 Highest Loss Streak 4 | . . 4 To Critical Strikes . | . . . Average Slot Usage (%) 97 | . 100 97 Engine 13 | . 14 13 Treads 7 | . . 10 Leg 11 | . 28 4 Hover 8 | . . 11 Device 5 | . 14 1 Storage 17 | . 14 18 Processor 4 | . . 6 Energy Gun 5 | . . 7 Energy Cannon 1 | . . 2 Ballistic Gun 20 | . 28 17 Naked Turns . | . . . Heaviest Build 55 | 15 20 55 Greatest Support 40 | 20 20 40 Greatest Overweight (x) 4 | 1 . 4 Average Overweight (x) . | . . 1 Largest Inventory Capacity 20 | 8 10 20 Average Capacity 11 | 7 8 13 Most Carried 9 | 5 8 9 Average Carried 5 | 3 6 4 Final Capacity 20 | 8 10 20 Final Carried 8 | 4 8 4 Class Distribution -------------------- 75% | Mutant 24% | Scavenger-Mutant Dominant Class ---------------- Mutant | -10/Materials Mutant | -10/Mines Resources | -11 -10 -10 ----------- Run | Jun Mat Min Matter Collected 526 | 227 98 201 Remotely . | . . . Salvage Created 289 | 11 68 210 Parts 14 | 3 4 7 Haulers Intercepted . | . . . Recyclers Shooed . | . . . Parts Field Recycled . | . . . Retrieved Matter . | . . . Parts Self-Destructed . | . . . Prevented . | . . . Kills | -11 -10 -10 ------- Run | Jun Mat Min Combat Hostiles Destroyed 12 | . 1 11 Guns 8 | . 1 7 Cannons 4 | . . 4 Classes Destroyed 5 | 1 2 2 Tunneler 1 | 1 . . Watcher 1 | . 1 . Swarmer 3 | . . 3 Grunt 3 | . 1 2 Assembled 6 | . . 6 Best Kill Streak 7 | 1 1 7 Combat Bots Only 7 | . 1 7 Max Kills in Single Turn 1 | 1 1 1 Gunslinging . | . . . Exploded . | . . . Melee . | . . . Uniques/NPCs Destroyed . | . . . Combat | -11 -10 -10 -------- Run | Jun Mat Min Damage Taken 1278 | . 10 1268 Core 276 | . 10 266 Absorbed by Shields . | . . . Core Remaining (%) 100 | 100 . . Volleys Fired 37 | 1 5 31 Largest 2 | 2 2 2 Hottest 100 | 40 40 100 Shots Fired 65 | 2 10 53 Gun 48 | 2 10 36 Cannon 17 | . . 17 Launcher . | . . . Special . | . . . Kinetic 33 | 2 10 21 Thermal 32 | . . 32 Explosive . | . . . Electromagnetic . | . . . Robot Hit Streak 8 | 1 3 8 Robot Miss Streak 8 | . 1 8 Penetration Max . | . . . Secondary Targets 1 | . . 1 Max Gunslinging Chain 1 | . . 1 Shots Hit Robots 34 | 1 6 27 Core Hits 24 | 1 4 19 Critical Kills . | . . . Critical Parts Destroyed . | . . . Critical Strikes . | . . . Melee Attacks . | . . . Impact . | . . . Slashing . | . . . Piercing . | . . . Sneak Attacks . | . . . Combat Hostiles . | . . . Follow-up Attacks . | . . . Damage Inflicted 581 | 13 74 494 Guns 350 | 13 74 263 Cannons 231 | . . 231 Explosions . | . . . Melee . | . . . Ramming . | . . . Kinetic 249 | 13 74 162 Thermal 332 | . . 332 Explosive . | . . . Electromagnetic . | . . . Impact . | . . . Slashing . | . . . Piercing . | . . . Highest Corruption 9 | . . 9 Average Corruption 8 | . . 8 Corruption Purged . | . . . Corruption Blocked . | . . . Effects 14 | . . 14 Message Errors 5 | . . 5 Matter Fused 2 | . . 2 Heat Flow Errors 1 | . . 1 Energy Discharges 3 | . . 3 Data Loss (minor) 2 | . . 2 Weapon Failures 1 | . . 1 Overload Shots . | . . . Overflow Damage 2 | . . 2 Projectiles 2 | . . 2 Explosions . | . . . Melee . | . . . Knockbacks . | . . . Impact . | . . . Kinetic . | . . . Secondary . | . . . Self-Inflicted Damage . | . . . Shots . | . . . Rammed . | . . . Targets Rammed . | . . . Kicked . | . . . Crushed . | . . . Highest Temperature 527 | . . 527 Average Temperature 255 | . . 255 Received Heat Transfer 511 | . 6 505 Effects 10 | . . 10 Shutdowns 3 | . . 3 Energy Bleed 1 | . . 1 Matter Decay 1 | . . 1 Short Circuit 2 | . . 2 Damage (minor) 1 | . . 1 Damage (major) 2 | . . 2 Siege Activations . | . . . Robots Corrupted . | . . . Combat Hostiles . | . . . Parts Fried . | . . . Impact Corruptions . | . . . Robots Melted . | . . . Combat Hostiles . | . . . Parts Melted 2 | . . 2 Heat Transferred 706 | . . 706 Parts Sabotaged . | . . . Parts Stolen . | . . . Parts Stripped . | . . . Power Chain Reactions . | . . . Missiles Intercepted . | . . . Alert | -11 -10 -10 ------- Run | Jun Mat Min Peak Influence 100 | 5 70 100 Initial 27 | . 3 27 Average 35 | . 48 34 Maximum Alert Level . | . . . Low Security (%) 100 | 100 100 100 Level 1 . | . . . Level 2 . | . . . Level 3 . | . . . Level 4 . | . . . Level 5 . | . . . High Security . | . . . Max Security . | . . . Squads Dispatched 1 | . 1 . Investigation . | . . . Extermination . | . . . Reinforcement 1 | . 1 . Assault . | . . . Garrison . | . . . Intercept . | . . . Searches Triggered . | . . . Construction Impeded . | . . . Haulers Reinforced . | . . . Active Scanning Responses . | . . . Cargo Convoy Interrupts . | . . . Stealth | -11 -10 -10 --------- Run | Jun Mat Min Distress Signals 3 | . 1 2 Communications Jammed . | . . . Distress Signals . | . . . Times Spotted 32 | . 2 30 Peak Tracking Total 16 | . 1 16 Tactical Retreats 4 | . . 4 Traps | -11 -10 -10 ------- Run | Jun Mat Min Traps Triggered . | . . . Indirectly . | . . . Trap Hack Attempts . | . . . Triggered . | . . . Disarmed . | . . . Reprogrammed . | . . . Reused . | . . . Traps Extracted . | . . . Installed . | . . . Triggered . | . . . Machines | -11 -10 -10 ---------- Run | Jun Mat Min Machines Disabled . | . . . Max in Single Turn . | . . . Machines Repaired . | . . . Machines Sabotaged . | . . . Overloaded Fab Kills . | . . . Hacking | -11 -10 -10 --------- Run | Jun Mat Min Machines Accessed 1 | . . 1 Terminals 1 | . . 1 Fabricators . | . . . Repair Stations . | . . . Recycling Units . | . . . Scanalyzers . | . . . Garrison Access . | . . . Total Hacks 1 | . . 1 Successful 1 | . . 1 Failed . | . . . Catastrophic . | . . . Database Lockouts . | . . . Manual . | . . . Terminals 1 | . . 1 Fabricators . | . . . Repair Stations . | . . . Recycling Units . | . . . Scanalyzers . | . . . Garrison Access . | . . . Terminal Hacks 1 | . . 1 Record 1 | . . 1 Fabricator Hacks . | . . . Repair Station Hacks . | . . . Recycling Unit Hacks . | . . . Scanalyzer . | . . . Garrison Access Hacks . | . . . Unauthorized Hacks . | . . . Terminals . | . . . Fabricators . | . . . Repair Stations . | . . . Recycling Units . | . . . Scanalyzers . | . . . Garrison Access . | . . . Data Cores Recovered . | . . . Used . | . . . Hacking Detections . | . . . Full Trace Events . | . . . Feedback Events . | . . . Feedback Blocked . | . . . Robot Schematics Acquired . | . . . Robots Built . | . . . Authchips . | . . . Time . | . . . Total Robot Build Rating . | . . . Part Schematics Acquired . | . . . Parts Built . | . . . Authchips . | . . . Time . | . . . Total Part Build Rating . | . . . Parts Repaired . | . . . Time . | . . . Parts Recycled . | . . . Recycled Matter . | . . . Retrieved Matter . | . . . Retrieved Components . | . . . Parts Scanalyzed . | . . . Part Schematics Acquired . | . . . Parts Damaged . | . . . Bothacking | -11 -10 -10 ------------ Run | Jun Mat Min Used RIF Installer . | . . . Robots Hacked . | . . . Non-combat . | . . . Combat . | . . . Robot Hacks Applied . | . . . Relay Couplers Released . | . . . Fabnet Peak Effective % . | . . . Robots Rewired . | . . . Allies Hacked . | . . . Hacks Repelled . | . . . Allies | -11 -10 -10 -------- Run | Jun Mat Min Total Allies . | . . . Largest Group . | . . . Highest-Rated Group . | . . . Highest-Rated Ally . | . . . Total Orders . | . . . Ally Attacks . | . . . Total Damage . | . . . Kills . | . . . Allies Corrupted . | . . . Allies Melted . | . . . Intel | -11 -10 -10 ------- Run | Jun Mat Min Robot Analysis Total . | . . . Derelict Logs Recovered . | . . . Drone Launches . | . . . Drone Recoveries . | . . . Exploration | -11 -10 -10 ------------- Run | Jun Mat Min Turns Passed 705 | 63 182 460 Spaces Moved 360 | 41 134 185 Core 13 | 13 . . Treads 72 | 4 . 68 Legs 210 | 24 134 52 Wheels . | . . . Hover 65 | . . 65 Flight . | . . . Fastest Speed 50 | 50 120 120 Average Speed 155 | 104 120 192 Slowest Speed 296 | 160 120 296 Overloaded Moves . | . . . Propulsion Burnouts . | . . . Robots Hopped . | . . . Cave-ins Triggered . | . . . Exploration Rate (%) 25 | 3 35 37 Regions Visited 2 Branch Regions 1 Pre-discovered Areas . | . . . Known Exits Taken . | . . . Unknown Exits Taken 2 | 1 1 . Scrap Searched 1 | . . 1 Spaces Dug . | . . . Terrain Destroyed . | . . . Melee . | . . . Projectile . | . . . AOE . | . . . Terrain Rammed . | . . . Walls Destroyed . | . . . Machines Disabled . | . . . Actions | -11 -10 -10 --------- Run | Jun Mat Min Total 437 | 57 145 235 Wait 1 | . 1 . Move 358 | 40 133 185 Hop . | . . . Pick Up 18 | 8 4 6 Fast Attach 3 | 3 . . Attach 13 | 4 . 9 Detach . | . . . Swap 4 | 1 1 2 Drop 3 | . 1 2 Fire 37 | 1 5 31 Melee . | . . . Ram . | . . . Kick . | . . . Crush . | . . . Escape Stasis . | . . . Rewire . | . . . Trap . | . . . Miscellaneous . | . . . Route ------- -11/Junkyard -10/Materials (discovered 2 exits: [*Mat] / *Min) -10/Mines History --------- Turn | Location | Event 14 | -11/Junkyard | Discovered new exit (range 16) 64 | -11/Junkyard | Entered Materials 147 | -10/Materials | Discovered new exit (range 16) 241 | -10/Materials | Discovered new exit (range 5) 246 | -10/Materials | Entered Mines 292 | -10/Mines | Assembled infested the area 297 | -10/Mines | Assisted by a Guerilla fighting off Assembled 311 | -10/Mines | Build established: Mutant 360 | -10/Mines | Lost 4 parts (1p2n1u) 458 | -10/Mines | Core integrity fell below 50% 481 | -10/Mines | Core integrity fell below 20% 543 | -10/Mines | Destroyed 7 combat bots 706 | -10/Mines | Destroyed by D-53 Grenadier with Mini Grenade Launcher Last Messages --------------- 00519_ Overheating: Med. Storage Unit damaged (-108). 00519_ Acquired 10 matter. 00522_ S-10 Pest destroyed. 00526_ Acquired Lgt. Assault Rifle. 00529_ System corrupted: Energy discharge (-100). 00533_ Acquired Sml. Laser. 00540_ Acquired Lgt. Ion Engine. 00544_ Discarded Broken Signal Interpreter. 00546_ System corrupted: Matter fused (-10). 00547_ Dropped Broken Lgt. Treads. 00550_ Acquired Flight Unit. 00555_ Acquired 43 matter. 00558_ Acquired 7 matter. 00584_ K-01 Serf collects debris. 00588_ System corrupted: Energy discharge (-28). 00593_ K-01 Serf collects debris. 00608_ System corrupted: Component data lost. 00665_ YDG6 Q24J6,0LL=&T FRZMSM2PA&FHC# KKCKX0Y 00691_ System corrupted: Energy discharge (-25). 00706_ Hover Unit destroyed. Map ----- +----------------------------------------------------+ | | | | | | | | | | | | | | | | | | | | | | | | | | | | | | | | | | | | | ?????????????????????????????????????????????????? | | ?????????????????????????????????????????????????? | | ??????????????????###????????????????????????????? | | ?????????????????## ##??????????????????????????? | | ?????????????????# ###????????????????????????? | | ??????####???????# ##???????????????????????? | | ?????## ##??????# ##??????????????????????? | | ?????# #??????### @######## #???????????? | | ?????# #???????## dd #??????????? | | ?????# #?????### # ### ???????????? | | ?????# #????## ##? #??????????????????? | | ?????# #????# ###???#??????????????????? | | ?????# ##??## ##????????????????????????? | | ?????# #### ###?????????????????????????? | | ?????# ##???????????????????????????? | | ?????## ##????????????????????????????? | | ??????### ###?????????????????????????????? | | ????????## ##???????????????????????????????? | | ?######### ##????????????????????????????????? | | ?# ### ##?????????????????????????????????? | | ?# #?## ##### #?????????????????????? | | ?# """ #### #?????????????????????? | | ?# """ ## ### #??????????????????????? | | ?# "" #### #??#????????????????????????????????? | | ?# ???#=#???????????????????????????????????? | | ?# ?????# #???????????????????????????????????? | | ??# ######## #???????????????????????????????????? | | ??#[%= % % #???????????????????????????????????? | | ### ##########???????????????????????????????????? | | ##???????????????????????????????????????????? | | #???????????????????????????????????????????? | | #???????????????????????????????????????????? | +----------------------------------------------------+ Best States ------------- Heat Dissipation 25 Energy Generation 10 Energy Capacity 250 Matter Stores 300 Matter Capacity 300 Sight Range 16 Terrain Scan Density 10 Evasion (%) 55 Recoil Reduction 2 Item Schematics ----------------- None Robot Schematics ------------------ None Fabricated ------------ Nothing Alien Tech Used ----------------- None Achievements -------------- None Challenges ------------ None Game ------ Seed HardenedSpacefoldScrap Manual? 0 Play Time 00:14:36 Cumulative 11.4 hours Start 2023.03.06 @ 20:12:59 End 2023.03.07 @ 14:36:38 Sessions 2 Manual Loads 0 Difficulty Rogue Special Mode None Game No. 11 Rogue 11 Adventurer 0 Explorer 0 Win Type - Total 0 Types 0/0/0/0/0/0/0/0/0 Lore% 6 Gallery% 13 Achievement% 13 Wizard Run 0 Options --------- ASCII 0 Keyboard 0 Movement Mouse Keybinds 0 Fullscreen 1 Font 16/Terminus Map View 76x50 Tactical HUD 1 Map Filters NONE Filters NONE Steam 1 RUN: fd53dd94-b084-4bc3-aea3-481cec18659c